bitfinex-derivatives/quotes_BNBF0:USTF0_20260110
["timestamp","ask_amount","ask_price","bid_price","bid_amount"]
[1768037482467,2.94251519,902.07,899.63,0.68863983]
[1768037482670,2.94251519,902.07,899.64,0.68863983]
[1768037482866,2.94251519,902.07,899.65,0.68863983]
[1768037483070,2.94251519,902.07,899.66,0.68863983]
[1768037483268,2.94251519,902.07,899.67,0.68863983]
[1768037483470,2.7494907,902.06,899.68,0.68863983]
[1768037483774,2.7494907,902.06,899.69,0.68863983]
[1768037483973,2.7494907,902.06,899.7,0.68863983]
[1768037484174,2.7494907,902.06,899.41,0.83084117]
[1768037484375,2.7494907,902.06,899.45,0.68732096]
[1768037484571,0.19302449,902.07,899.46,0.68732096]
[1768037484870,0.19302449,902.07,899.47,0.68732096]
[1768037485074,0.19302449,902.07,899.48,0.68732096]
[1768037485374,0.19302449,902.07,899.49,0.68732096]
[1768037485674,0.19302449,902.07,899.5,0.68732096]
[1768037485870,0.19302449,902.07,899.51,0.68732096]
[1768037486071,0.19302449,902.07,899.52,0.68732096]
[1768037486270,0.19302449,902.07,899.53,0.68732096]
[1768037486571,0.19302449,902.07,899.54,0.68732096]
[1768037486771,0.19302449,902.07,899.55,0.68732096]
[1768037486975,0.19302449,902.07,899.56,0.68732096]
[1768037487173,0.19302449,902.07,899.57,0.68732096]
[1768037487373,0.19302449,902.07,899.58,0.68732096]
[1768037487570,0.19302449,902.07,899.59,0.68732096]
[1768037487774,0.19302449,902.07,899.6,0.68732096]
[1768037488071,0.19302449,902.07,899.61,0.68732096]
[1768037488270,0.19302449,902.07,899.62,0.68732096]
[1768037488468,0.19302449,902.07,899.63,0.68732096]
[1768037488674,0.19302449,902.07,899.64,0.68732096]
[1768037488973,0.19302449,902.07,899.65,0.68732096]
[1768037489171,0.19302449,902.07,899.36,0.83084117]
[1768037489372,0.19302449,902.07,899.45,0.6864517]
[1768037489572,0.19302449,902.07,899.46,0.6864517]
[1768037489772,0.19302449,902.07,899.47,0.6864517]
[1768037489971,0.19302449,902.07,899.48,0.6864517]
[1768037490277,0.19302449,902.07,899.49,0.6864517]
[1768037490471,0.19302449,902.07,899.5,0.6864517]
[1768037490676,0.19302449,902.07,899.51,0.6864517]
[1768037490874,0.19302449,902.07,899.52,0.6864517]
[1768037491174,0.19302449,902.07,899.53,0.6864517]
[1768037491374,0.19302449,902.07,899.54,0.6864517]
[1768037491676,0.19302449,902.07,899.55,0.6864517]
[1768037491874,0.19302449,902.07,899.56,0.6864517]
[1768037492074,0.19302449,902.07,899.57,0.6864517]
[1768037492275,0.19302449,902.07,899.58,0.6864517]
[1768037492475,0.19302449,902.07,899.59,0.6864517]
[1768037492671,0.19302449,902.07,899.6,0.6864517]
[1768037492875,0.19302449,902.07,899.61,0.6864517]
[1768037493078,0.19302449,902.07,899.62,0.6864517]
[1768037493275,0.19302449,902.07,899.63,0.6864517]
[1768037493479,0.19302449,902.07,899.35,0.83084117]
[1768037493680,0.19302449,902.07,899.49,0.83084117]
[1768037493879,0.19302449,902.07,899.5,0.68633043]
[1768037494077,0.19302449,902.07,899.51,0.68633043]
[1768037494281,0.19302449,902.07,899.52,0.68633043]
[1768037494578,0.19302449,902.07,899.53,0.68633043]
[1768037494780,0.19302449,902.07,899.54,0.68633043]
[1768037494979,0.19302449,902.07,899.55,0.68633043]
[1768037495178,0.19302449,902.07,899.56,0.68633043]
[1768037495381,0.19302449,902.07,899.57,0.68633043]
[1768037495680,0.19302449,902.07,899.58,0.68633043]
[1768037495875,0.19302449,902.07,899.59,0.68633043]
[1768037496180,0.19302449,902.07,899.6,0.68633043]
[1768037496376,0.19302449,902.07,899.61,0.68633043]
[1768037496678,0.19302449,902.07,899.62,0.68633043]
[1768037496880,0.19302449,902.07,899.63,0.68633043]
[1768037497080,0.19302449,902.07,899.64,0.68633043]
[1768037497282,0.19302449,902.07,899.65,0.68633043]
[1768037497482,0.19302449,902.07,899.66,0.68633043]
[1768037497786,0.19302449,902.07,899.67,0.68633043]
[1768037497982,0.19302449,902.07,899.68,0.68633043]
[1768037498284,0.19302449,902.07,899.69,0.68633043]
[1768037498483,0.19302449,902.07,899.7,0.68633043]
[1768037498681,0.19302449,902.07,899.71,0.68633043]
[1768037498982,0.19302449,902.07,899.72,0.68633043]
[1768037499281,0.19302449,902.07,899.44,6.75432739]
[1768037499282,0.19302449,902.07,899.73,0.68633043]
[1768037499582,0.19302449,902.07,899.74,0.68633043]
[1768037499782,0.19302449,902.07,899.75,0.68633043]
[1768037499981,0.19302449,902.07,899.76,0.68633043]
[1768037500182,0.19302449,902.07,899.48,0.83084117]
[1768037500382,0.19302449,902.07,899.49,0.68706562]
[1768037500587,0.19302449,902.07,899.5,0.68706562]
[1768037500782,0.19302449,902.07,899.51,0.68706562]
[1768037501086,0.19302449,902.07,899.52,0.68706562]
[1768037501286,0.19302449,902.07,899.48,0.83084117]
[1768037501287,0.19302449,902.07,899.53,0.68706562]
[1768037501487,0.19302449,902.07,899.54,0.68706562]
[1768037501784,0.19302449,902.07,899.55,0.68706562]
[1768037501987,0.19302449,902.07,899.56,0.68706562]
[1768037502188,0.19302449,902.07,899.57,0.68706562]
[1768037502384,0.19302449,902.07,899.58,0.68706562]
[1768037502583,0.19302449,902.07,899.59,0.68706562]
[1768037502584,2.7494907,902.05,899.59,0.68706562]
[1768037502783,2.7494907,902.05,899.6,0.68706562]
[1768037502983,2.7494907,902.05,899.61,0.68706562]
[1768037503187,2.7494907,902.05,899.62,0.68706562]
[1768037503487,2.7494907,902.05,899.63,0.68706562]
[1768037503688,2.7494907,902.02,899.64,0.68706562]
[1768037503988,2.7494907,902.02,899.65,0.68706562]
[1768037504287,2.7494907,902.02,899.66,0.68706562]
[1768037504484,2.7494907,902.02,899.67,0.68706562]
[1768037504787,2.7494907,902.0,899.68,0.68706562]
[1768037504988,2.7494907,902.0,899.69,0.68706562]
[1768037505285,2.7494907,902.0,899.44,6.75432739]
[1768037505487,2.7494907,902.0,899.45,0.68836067]
[1768037505688,2.7494907,901.94,899.46,0.68836067]
[1768037505987,2.7494907,901.94,899.47,0.68836067]
[1768037506187,2.7494907,901.94,899.48,0.68836067]
[1768037506485,2.7494907,901.94,899.49,0.68836067]
[1768037506689,2.7494907,901.86,899.5,0.68836067]
[1768037506989,2.7494907,901.86,899.44,6.75432739]
[1768037507189,2.7494907,901.46,898.96,0.83084117]
[1768037507386,2.7494907,901.46,898.97,0.68912474]
[1768037507586,2.7494907,901.46,898.98,0.68912474]
[1768037507785,2.7494907,901.28,898.68,0.83084117]
[1768037507988,2.7494907,901.28,898.69,0.6891827]
[1768037508289,2.7494907,901.23,898.7,0.6891827]
[1768037508487,2.7494907,901.23,898.71,0.6891827]
[1768037508686,2.7494907,901.23,898.72,0.6891827]
[1768037508893,2.7494907,901.21,898.73,0.6891827]
[1768037509192,2.7494907,901.21,898.74,0.6891827]
[1768037509392,2.7494907,901.24,898.75,0.6891827]
[1768037509691,2.7494907,901.24,898.76,0.6891827]
[1768037509891,2.7494907,901.24,898.77,0.6891827]
[1768037510088,2.7494907,901.24,898.78,0.6891827]
[1768037510288,2.7494907,901.24,898.79,0.6891827]
[1768037510491,2.7494907,901.24,898.8,0.6891827]
[1768037510692,2.7494907,901.24,898.81,0.6891827]
[1768037510891,2.7494907,901.24,898.82,0.6891827]
[1768037511089,2.7494907,901.24,898.83,0.6891827]
[1768037511393,2.7494907,901.34,898.84,0.6891827]
[1768037511592,2.7494907,901.34,898.85,0.6891827]
[1768037511894,2.7494907,901.36,898.86,0.6891827]
[1768037512194,2.7494907,901.49,898.93,0.83084117]
[1768037512392,2.7494907,901.49,898.94,0.6891827]
[1768037512690,2.7494907,901.52,898.96,0.83084117]
[1768037512893,2.7494907,901.52,898.97,0.6891827]
[1768037513194,2.7494907,901.52,898.98,0.6891827]
[1768037513393,2.7494907,901.52,899.04,0.83084117]
[1768037513590,2.7494907,901.58,899.05,0.6891827]
[1768037513790,2.7494907,901.58,899.06,0.6891827]
[1768037513991,2.7494907,901.58,899.07,0.6891827]
[1768037514190,2.7494907,901.58,899.08,0.6891827]
[1768037514492,2.7494907,901.58,899.11,0.83084117]
[1768037514690,2.7494907,901.61,899.12,0.6891827]
[1768037514889,2.7494907,901.61,899.13,4.94952488]
[1768037515196,2.7494907,901.61,899.14,0.6891827]
[1768037515392,2.7494907,901.61,899.15,0.6891827]
[1768037515590,2.7494907,901.61,899.16,0.6891827]
[1768037515793,2.7494907,901.59,899.17,0.6891827]
[1768037515991,2.7494907,901.59,899.18,0.6891827]
[1768037516194,2.7494907,901.59,899.19,0.6891827]
[1768037516393,2.7494907,901.59,899.2,0.6891827]
[1768037516595,2.7494907,901.59,899.21,0.6891827]
[1768037516891,2.7494907,901.57,899.22,0.6891827]
[1768037517095,2.7494907,901.57,899.23,0.6891827]
[1768037517393,2.7494907,901.58,899.24,0.6891827]
[1768037517597,2.7494907,901.58,899.25,0.6891827]
[1768037517799,2.7494907,901.58,899.26,0.6891827]
[1768037517995,2.7494907,901.7,899.29,0.83084117]
[1768037518193,2.7494907,901.7,899.3,1.52002387]
[1768037518393,2.7494907,901.7,899.33,0.83084117]
[1768037518597,2.7494907,901.78,899.37,0.83084117]
[1768037518796,2.7494907,901.78,899.38,1.52002387]
[1768037519098,2.7494907,901.87,899.48,0.83084117]
[1768037519296,2.7494907,901.87,899.13,4.26034218]
[1768037519297,2.7494907,901.87,899.49,1.52002387]
[1768037519500,2.7494907,901.91,899.55,0.83084117]
[1768037519697,2.7494907,901.91,899.56,0.6891827]
[1768037519898,2.7494907,901.97,899.57,0.6891827]
[1768037520101,2.7494907,901.97,899.58,0.6891827]
[1768037520401,2.7494907,901.97,899.59,0.6891827]
[1768037520598,0.19302449,902.07,899.59,0.6891827]
[1768037520599,0.19302449,902.07,899.76,0.83084117]
[1768037520798,0.19302449,902.07,899.77,0.6891827]
[1768037521003,0.19302449,902.07,899.78,0.6891827]
[1768037521205,0.19302449,902.07,899.79,0.6891827]
[1768037521404,0.19302449,902.07,899.8,0.6891827]
[1768037521600,0.19302449,902.07,899.81,0.6891827]
[1768037521799,0.19302449,902.07,899.82,0.6891827]
[1768037522004,0.19302449,902.07,899.83,0.6891827]
[1768037522204,0.19302449,902.07,899.84,0.6891827]
[1768037522504,0.19302449,902.07,899.92,0.83084117]
[1768037522704,0.19302449,902.07,899.93,0.6891827]
[1768037522904,0.19302449,902.07,899.94,0.6891827]
[1768037523101,0.19302449,902.07,899.95,0.6891827]
[1768037523304,0.19302449,902.07,899.62,0.83084117]
[1768037523503,0.19302449,902.07,899.63,0.69040929]
[1768037523706,0.19302449,902.07,899.64,0.69040929]
[1768037523906,0.19302449,902.07,899.65,0.69040929]
[1768037524106,0.19302449,902.07,899.66,0.69040929]
[1768037524307,0.19302449,902.07,899.67,0.69040929]
[1768037524506,0.19302449,902.07,899.68,0.69040929]
[1768037524804,0.19302449,902.07,899.69,0.69040929]
[1768037525102,0.19302449,902.07,899.7,0.69040929]
[1768037525301,0.19302449,902.07,899.71,0.69040929]
[1768037525502,0.19302449,902.07,899.72,0.69040929]
[1768037525803,0.19302449,902.07,899.73,0.69040929]
[1768037526002,0.19302449,902.07,899.74,0.69040929]
[1768037526203,0.19302449,902.07,899.75,0.69040929]
[1768037526407,0.19302449,902.07,899.76,0.69040929]
[1768037526606,0.19302449,902.07,899.77,0.69040929]
[1768037526805,0.19302449,902.07,899.78,0.69040929]
[1768037527006,0.19302449,902.07,899.79,0.69040929]
[1768037527205,0.19302449,902.07,899.8,0.69040929]
[1768037527406,0.19302449,902.07,899.81,0.69040929]
[1768037527605,0.19302449,902.07,899.82,0.69040929]
[1768037527909,0.19302449,902.07,899.83,0.69040929]
[1768037528109,0.19302449,902.07,899.84,0.69040929]
[1768037528309,0.19302449,902.07,899.85,0.69040929]
[1768037528505,0.19302449,902.07,899.86,0.69040929]
[1768037528706,0.19302449,902.07,899.87,0.69040929]
[1768037529007,0.19302449,902.07,899.88,0.69040929]
[1768037529206,0.19302449,902.07,899.89,0.69040929]
[1768037529505,0.19302449,902.07,899.9,0.69040929]
[1768037529711,0.19302449,902.07,899.91,0.69040929]
[1768037529910,0.19302449,902.07,899.92,0.69040929]
[1768037530210,0.19302449,902.07,899.93,0.69040929]
[1768037530409,0.19302449,902.07,899.94,0.69040929]
[1768037530609,0.19302449,902.07,899.95,0.69040929]
[1768037530809,0.19302449,902.07,899.96,0.69040929]
[1768037531007,0.19302449,902.07,899.97,0.68882348]
[1768037531207,0.19302449,902.07,899.98,0.68882348]
[1768037531409,0.19302449,902.07,899.69,0.83084117]
[1768037531614,0.19302449,902.07,899.7,0.6885769]
[1768037531809,0.19302449,902.07,899.7,1.51941807]
[1768037532014,0.19302449,902.07,899.71,0.6885769]
[1768037532315,0.19302449,902.07,899.71,1.51941807]
[1768037532516,0.19302449,902.07,899.72,0.6885769]
[1768037532814,0.19302449,902.07,899.73,0.6885769]
[1768037533010,0.19302449,902.07,899.74,0.6885769]
[1768037533216,0.19302449,902.07,899.75,0.6885769]
[1768037533414,0.19302449,902.07,899.98,0.83084117]
[1768037533715,0.19302449,902.07,900.0,0.83084117]
[1768037533911,0.19302449,902.07,900.01,0.6885769]
[1768037534115,0.19302449,902.07,900.02,0.6885769]
[1768037534409,0.19302449,902.07,899.13,4.26034218]
[1768037534410,0.19302449,902.07,900.03,0.6885769]
[1768037534614,0.19302449,902.07,900.04,0.6885769]
[1768037534813,0.19302449,902.07,900.05,0.6885769]
[1768037535015,0.19302449,902.07,900.06,0.6885769]
[1768037535315,0.19302449,902.07,900.07,0.6885769]
[1768037535614,0.19302449,902.07,900.08,0.6885769]
[1768037535812,0.19302449,902.07,900.09,0.6885769]
[1768037536013,0.19302449,902.07,900.1,0.6885769]
[1768037536212,0.19302449,902.07,900.11,0.6885769]
[1768037536412,0.19302449,902.07,900.12,0.6885769]
[1768037536714,0.19302449,902.07,900.13,0.6885769]
[1768037536917,0.19302449,902.07,900.14,0.6885769]
[1768037537117,0.19302449,902.07,900.15,0.6885769]
[1768037537318,0.19302449,902.07,900.16,0.6885769]
[1768037537515,0.19302449,902.07,900.17,0.6885769]
[1768037537714,0.19302449,902.07,900.18,0.6885769]
[1768037537917,0.19302449,902.07,900.19,0.6885769]
[1768037538118,0.19302449,902.07,900.2,0.6885769]
[1768037538316,0.19302449,902.07,900.21,0.6885769]
[1768037538515,0.19302449,902.07,900.22,0.6885769]
[1768037538714,0.19302449,902.07,900.23,0.6885769]
[1768037538918,0.19302449,902.07,900.24,0.6885769]
[1768037539118,0.19302449,902.07,900.25,0.6885769]
[1768037539318,0.19302449,902.07,900.26,0.6885769]
[1768037539519,0.19302449,902.07,899.97,0.83084117]
[1768037539820,0.19302449,902.07,899.98,0.68673364]
[1768037540016,0.19302449,902.07,899.99,0.68673364]
[1768037540317,0.19302449,902.07,900.0,0.68673364]
[1768037540519,0.19302449,902.07,900.01,0.68673364]
[1768037540714,0.19302449,902.07,900.02,0.68673364]
[1768037541019,0.19302449,902.07,900.03,0.68673364]
[1768037541219,0.19302449,902.07,900.04,0.68673364]
[1768037541419,0.19302449,902.07,900.05,0.68673364]
[1768037541616,0.19302449,902.07,900.06,0.68673364]
[1768037541820,0.19302449,902.07,900.07,0.68673364]
[1768037542020,0.19302449,902.07,900.08,0.68673364]
[1768037542220,0.19302449,902.07,900.09,0.68673364]
[1768037542522,0.19302449,902.07,900.1,0.68673364]
[1768037542817,0.19302449,902.07,900.11,0.68673364]
[1768037543018,0.19302449,902.07,900.12,0.68673364]
[1768037543219,0.19302449,902.07,900.13,0.68673364]
[1768037543418,0.19302449,902.07,900.14,0.68673364]
[1768037543621,0.19302449,902.07,900.15,0.68673364]
[1768037543821,0.19302449,902.07,900.16,0.68673364]
[1768037544119,0.19302449,902.07,900.17,0.68673364]
[1768037544318,0.19302449,902.07,899.84,0.83084117]
[1768037544522,0.19302449,902.07,899.85,0.68601672]
[1768037544820,0.19302449,902.07,899.86,0.68601672]
[1768037545122,0.19302449,902.07,899.87,0.68601672]
[1768037545322,0.19302449,902.07,899.84,0.83084117]
[1768037545323,0.19302449,902.07,899.88,0.68601672]
[1768037545517,0.19302449,902.07,899.89,0.68601672]
[1768037545722,0.19302449,902.07,899.9,0.68601672]
[1768037545919,0.19302449,902.07,899.91,0.68601672]
[1768037546222,0.19302449,902.07,899.92,0.68601672]
[1768037546523,0.19302449,902.07,899.93,0.68601672]
[1768037546823,0.19302449,902.07,899.94,0.68601672]
[1768037547017,0.19302449,902.07,899.95,0.68601672]
[1768037547219,0.19302449,902.07,899.96,0.68601672]
[1768037547418,0.19302449,902.07,899.97,0.68601672]
[1768037547620,0.19302449,902.07,899.98,0.68601672]
[1768037547821,0.19302449,902.07,899.99,0.68601672]
[1768037548021,0.19302449,902.07,900.0,0.68601672]
[1768037548219,0.19302449,902.07,900.01,0.68601672]
[1768037548522,0.19302449,902.07,900.02,0.68601672]
[1768037548724,0.19302449,902.07,899.73,0.83084117]
[1768037548917,0.19302449,902.07,899.74,0.68579243]
[1768037549120,0.19302449,902.07,899.75,0.68579243]
[1768037549323,0.19302449,902.07,899.76,0.68579243]
[1768037549620,0.19302449,902.07,899.77,0.68579243]
[1768037549820,0.19302449,902.07,899.78,0.68579243]
[1768037550023,0.19302449,902.07,899.79,0.68579243]
[1768037550221,0.19302449,902.07,899.8,0.68579243]
[1768037550424,0.19302449,902.07,899.81,0.68579243]
[1768037550720,0.19302449,902.07,899.82,0.68579243]
[1768037550925,0.19302449,902.07,899.83,0.68579243]
[1768037551121,0.19302449,902.07,899.58,0.82051735]
[1768037551122,0.19302449,902.07,899.84,0.68579243]
[1768037551324,0.19302449,902.07,899.85,0.68579243]
[1768037551520,0.19302449,902.07,899.86,0.68579243]
[1768037551824,0.19302449,902.07,899.87,0.68579243]
[1768037552020,0.19302449,902.07,899.58,0.82051735]
[1768037552324,0.19302449,902.07,899.6,0.82051735]
[1768037552525,0.19302449,902.07,899.61,0.6867048]
[1768037552723,0.19302449,902.07,899.62,0.6867048]
[1768037552924,0.19302449,902.07,899.63,0.6867048]
[1768037553122,0.19302449,902.07,899.64,0.6867048]
[1768037553422,0.19302449,902.07,899.65,1.50722215]
[1768037553722,0.19302449,902.07,899.66,0.6867048]
[1768037553927,0.19302449,902.07,899.67,0.6867048]
[1768037554127,0.19302449,902.07,899.68,0.6867048]
[1768037554327,0.19302449,902.07,899.69,0.6867048]
[1768037554522,0.19302449,902.07,899.7,0.6867048]
[1768037554723,0.19302449,902.07,899.71,0.6867048]
[1768037554927,0.19302449,902.07,899.72,0.6867048]
[1768037555124,0.19302449,902.07,899.73,0.6867048]
[1768037555330,0.19302449,902.07,899.74,0.6867048]
[1768037555527,0.19302449,902.07,899.75,0.6867048]
[1768037555831,0.19302449,902.07,899.72,0.82051735]
[1768037555832,0.19302449,902.07,899.76,0.6867048]
[1768037556131,0.19302449,902.07,899.77,0.6867048]
[1768037556430,0.19302449,902.07,899.78,0.6867048]
[1768037556626,0.19302449,902.07,899.79,0.6867048]
[1768037556932,0.19302449,902.07,899.8,0.6867048]
[1768037557231,0.19302449,902.07,899.81,0.6867048]
[1768037557428,0.19302449,902.07,899.82,0.6867048]
[1768037557626,0.19302449,902.07,899.83,0.6867048]
[1768037557827,0.19302449,902.07,899.84,0.6867048]
[1768037558126,0.19302449,902.07,899.85,0.6867048]
[1768037558431,0.19302449,902.07,899.86,0.6867048]
[1768037558630,0.19302449,902.07,899.87,0.6867048]
[1768037558930,0.19302449,902.07,899.88,0.6867048]
[1768037559131,0.19302449,902.07,899.89,0.6867048]
[1768037559330,0.19302449,902.07,899.9,0.6867048]
[1768037559532,0.19302449,902.07,899.91,0.6867048]
[1768037559829,0.19302449,902.07,899.92,0.6867048]
[1768037560031,0.19302449,902.07,899.93,0.6867048]
[1768037560228,0.19302449,902.07,899.94,0.6867048]
[1768037560428,0.19302449,902.07,899.95,0.6867048]
[1768037560630,0.19302449,902.07,899.96,0.6867048]
[1768037560828,0.19302449,902.07,899.97,0.6867048]
[1768037561032,0.19302449,902.07,899.98,0.6867048]
[1768037561235,0.19302449,902.07,899.99,0.6867048]
[1768037561430,0.19302449,902.07,900.0,0.6867048]
[1768037561634,0.19302449,902.07,900.01,0.6867048]
[1768037561833,0.19302449,902.07,900.02,0.6867048]
[1768037562134,0.19302449,902.07,900.03,0.6867048]
[1768037562332,0.19302449,902.07,900.04,0.6867048]
[1768037562536,0.19302449,902.07,900.05,0.6867048]
[1768037562737,0.19302449,902.07,900.06,0.6867048]
[1768037562936,0.19302449,902.07,900.07,0.6867048]
[1768037563134,0.19302449,902.07,900.08,0.6867048]
[1768037563338,0.19302449,902.07,900.09,0.6867048]
[1768037563538,2.7494907,902.03,900.1,0.6867048]
[1768037563739,2.7494907,902.03,900.11,0.6867048]
[1768037563940,2.7494907,902.03,900.12,0.6867048]
[1768037564140,2.7494907,902.03,900.13,0.6867048]
[1768037564441,2.7494907,902.01,900.14,0.6867048]
[1768037564638,2.7494907,902.01,900.15,0.6867048]
[1768037564838,2.7494907,902.01,900.16,0.6867048]
[1768037565036,2.7494907,902.01,899.84,0.82051735]
[1768037565241,2.7494907,902.01,899.85,0.69486126]
[1768037565539,2.7494907,901.77,899.86,0.69486126]
[1768037565840,2.7494907,901.77,899.87,0.69486126]
[1768037566038,2.7494907,901.77,899.88,0.69486126]
[1768037566236,2.7494907,901.77,899.89,0.69486126]
[1768037566440,2.7494907,901.78,899.9,0.69486126]
[1768037566643,2.7494907,901.78,899.91,0.69486126]
[1768037566841,2.7494907,901.78,899.92,0.69486126]
[1768037567041,2.7494907,901.78,899.93,0.69486126]
[1768037567237,2.7494907,901.78,899.64,0.82051735]
[1768037567442,2.7494907,901.79,899.65,0.69437873]
[1768037567640,2.7494907,901.79,899.66,0.69437873]
[1768037567842,2.7494907,901.79,899.67,0.69437873]
[1768037568042,2.7494907,901.79,899.68,0.69437873]
[1768037568242,2.7494907,901.79,899.69,0.69437873]
[1768037568439,2.7494907,901.79,899.7,0.69437873]
[1768037568644,2.7494907,901.8,899.71,0.69437873]
[1768037568944,2.7494907,901.8,899.72,0.69437873]
[1768037569144,2.7494907,901.8,899.73,0.69437873]
[1768037569342,2.7494907,901.8,899.74,0.69437873]
[1768037569546,2.7494907,901.81,899.75,0.69437873]
[1768037569746,2.7494907,901.81,899.76,0.69437873]
[1768037569944,2.7494907,901.81,899.77,0.69437873]
[1768037570242,2.7494907,901.83,899.78,0.69437873]
[1768037570442,2.7494907,901.83,899.79,0.69437873]
[1768037570642,2.7494907,901.84,899.8,0.69437873]
[1768037570845,2.7494907,901.84,899.81,0.69437873]
[1768037571042,2.7494907,901.84,899.82,0.69437873]
[1768037571247,2.7494907,901.84,899.83,0.69437873]
[1768037571540,2.7494907,901.85,899.84,0.69437873]
[1768037571746,2.7494907,901.85,899.85,0.69437873]
[1768037572042,2.7494907,901.85,899.86,0.69437873]
[1768037572241,2.7494907,901.85,899.87,0.69437873]
[1768037572446,2.7494907,901.85,899.88,0.69437873]
[1768037572646,2.7494907,901.85,899.89,0.69437873]
[1768037572844,2.7494907,901.85,899.9,0.69437873]
[1768037573047,2.7494907,901.85,899.61,0.82051735]
[1768037573248,2.7494907,901.85,899.62,0.69354333]
[1768037573447,2.7494907,901.85,899.68,0.82051735]
[1768037573644,2.7494907,901.92,899.69,0.69354333]
[1768037573848,2.7494907,901.92,899.7,0.69354333]
[1768037574050,2.7494907,901.92,899.71,0.69354333]
[1768037574246,2.7494907,901.92,899.72,0.69354333]
[1768037574450,2.7494907,901.92,899.73,0.69354333]
[1768037574652,2.7494907,901.92,899.74,0.69354333]
[1768037574947,2.7494907,901.91,899.75,0.69354333]
[1768037575152,2.7494907,901.91,899.76,0.69354333]
[1768037575354,2.7494907,901.9,899.77,0.69354333]
[1768037575549,2.7494907,901.9,899.78,0.69354333]
[1768037575749,2.7494907,902.0,899.79,0.69354333]
[1768037576049,2.7494907,902.0,899.8,0.69354333]
[1768037576253,2.7494907,902.01,899.81,0.69354333]
[1768037576450,2.7494907,902.01,899.82,0.69354333]
[1768037576651,2.7494907,901.99,899.83,0.69354333]
[1768037576952,2.7494907,901.99,899.84,0.69354333]
[1768037577153,2.7494907,901.99,899.85,0.69354333]
[1768037577354,2.7494907,901.97,899.86,0.69354333]
[1768037577552,2.7494907,901.97,899.87,0.69354333]
[1768037577751,2.7494907,901.99,899.88,0.69354333]
[1768037577954,2.7494907,901.99,899.89,0.69354333]
[1768037578254,2.7494907,901.99,899.9,0.69354333]
[1768037578454,2.7494907,901.99,899.91,0.69354333]
[1768037578655,2.7494907,901.99,899.92,0.69354333]
[1768037578852,2.7494907,902.0,899.93,0.69354333]
[1768037579152,2.7494907,902.0,899.94,0.69354333]
[1768037579356,2.7494907,901.99,899.95,0.69354333]
[1768037579656,2.7494907,901.99,899.96,0.69354333]
[1768037579957,2.7494907,901.99,899.97,0.69354333]
[1768037580160,2.7494907,901.99,899.98,0.69354333]
[1768037580454,2.7494907,901.83,899.58,0.82051735]
[1768037580658,2.7494907,901.83,899.59,0.69392167]
[1768037580858,2.7494907,901.83,899.6,0.69392167]
[1768037581056,2.7494907,901.83,899.61,0.69392167]
[1768037581358,2.7494907,901.83,899.62,0.69392167]
[1768037581555,2.7494907,901.83,899.63,0.69392167]
[1768037581758,2.7494907,901.83,899.64,0.69392167]
[1768037581956,2.7494907,901.83,899.65,0.69392167]
[1768037582156,2.7494907,901.83,899.66,0.69392167]
[1768037582357,2.7494907,901.83,899.67,0.69392167]
[1768037582654,2.7494907,901.62,899.36,0.82051735]
[1768037582854,2.7494907,901.62,899.37,0.69410709]
[1768037583056,2.7494907,901.6,899.38,0.69410709]
[1768037583255,2.7494907,901.6,899.39,0.69410709]
[1768037583459,2.7494907,901.63,899.4,0.69410709]
[1768037583659,2.7494907,901.63,899.41,0.69410709]
[1768037583857,2.7494907,901.63,899.42,0.69410709]
[1768037584059,2.7494907,901.63,899.43,0.69410709]
[1768037584359,2.7494907,901.63,899.44,0.69410709]
[1768037584656,2.7494907,901.65,899.45,0.69410709]
[1768037584958,2.7494907,901.65,899.46,0.69410709]
[1768037585157,2.7494907,901.65,899.47,0.69410709]
[1768037585356,2.7494907,901.65,899.48,0.69410709]
[1768037585560,2.7494907,901.66,899.49,0.69410709]
[1768037585857,2.7494907,901.66,899.5,0.69410709]
[1768037586058,2.7494907,901.66,899.51,0.69410709]
[1768037586259,2.7494907,901.66,899.52,0.69410709]
[1768037586458,2.7494907,901.66,899.53,0.69410709]
[1768037586658,2.7494907,901.66,899.54,0.69410709]
[1768037586857,2.7494907,901.66,899.55,0.69410709]
[1768037587058,2.7494907,901.66,899.56,0.69410709]
[1768037587260,2.7494907,901.66,899.57,0.69410709]
[1768037587458,2.7494907,901.66,899.58,0.69410709]
[1768037587657,2.7494907,901.67,899.59,0.69410709]
[1768037587957,2.7494907,901.67,899.6,0.69410709]
[1768037588158,2.7494907,901.67,899.61,0.69410709]
[1768037588360,2.7494907,901.67,899.62,0.69410709]
[1768037588560,2.7494907,901.67,899.63,0.69410709]
[1768037588759,2.7494907,901.67,899.64,0.69410709]
[1768037588959,2.7494907,901.67,899.65,0.69410709]
[1768037589159,2.7494907,901.67,899.66,0.69410709]
[1768037589363,2.7494907,901.67,899.67,0.69410709]
[1768037589560,2.7494907,901.67,899.68,0.69410709]
[1768037589760,2.7494907,901.67,899.69,0.69410709]
[1768037589965,2.7494907,901.67,899.7,0.69410709]
[1768037590165,2.7494907,901.67,899.71,0.69410709]
[1768037590365,2.7494907,901.66,899.72,0.69410709]
[1768037590566,2.7494907,901.66,899.43,0.82051735]
[1768037590768,2.7494907,901.67,899.44,0.69413032]
[1768037590967,2.7494907,901.67,899.45,0.69413032]
[1768037591163,2.7494907,901.67,899.46,0.69413032]
[1768037591368,2.7494907,901.67,899.47,0.69413032]